bitfinex-derivatives/quotes_SOLF0:USTF0_20240920
["timestamp","ask_amount","ask_price","bid_price","bid_amount"]
[1726845711315,3.3935,147.32,147.28,3.3941]
[1726845712623,3.3935,147.32,147.3,3.3939]
[1726845712817,3.3933,147.33,147.3,3.3939]
[1726845713130,20.84,147.39,147.3,3.32395484]
[1726845713421,3.3929,147.35,147.31,1.4081]
[1726845713624,3.3929,147.35,147.31,4.80095741]
[1726845713925,3.3929,147.35,147.31,1.4081]
[1726845714227,3.3929,147.35,147.31,4.8016]
[1726845714528,3.3926,147.36,147.32,3.3933]
[1726845716721,20.84,147.36,147.31,1.4081]
[1726845717819,20.84,147.34,147.23,1.2925]
[1726845718320,3.3935,147.32,147.23,1.2925]
[1726845718713,3.3937,147.31,147.23,1.2925]
[1726845719216,3.3941,147.29,147.23,1.2925]
[1726845719427,20.84,147.34,147.23,1.2925]
[1726845719828,3.394,147.3,147.27,3.3946]
[1726845720235,20.84,147.34,147.23,1.2925]
[1726845720626,3.3938,147.31,147.28,3.3942]
[1726845720832,20.84,147.34,147.23,1.2925]
[1726845721133,3.3942,147.29,147.26,3.3947]
[1726845721319,20.84,147.34,147.23,1.2925]
[1726845721519,20.84,147.31,147.23,1.2925]
[1726845721715,3.3952,147.25,147.23,1.2925]
[1726845721915,20.84,147.28,147.23,1.2925]
[1726845722327,3.3953,147.24,147.23,1.2925]
[1726845722721,20.84,147.28,147.16,1.3792]
[1726845723034,20.84,147.26,147.17,2.7116]
[1726845723221,3.34952689,147.31,147.17,2.7116]
[1726845723534,3.3952,147.25,147.22,3.3957]
[1726845723922,20.84,147.29,147.22,3.3957]
[1726845724121,20.84,147.29,147.23,3.3955]
[1726845724321,20.84,147.29,147.21,3.4305965]
[1726845724619,3.3945,147.28,147.24,3.3951]
[1726845724818,20.84,147.29,147.22,3.38542132]
[1726845725025,20.84,147.29,147.17,2.7116]
[1726845725332,20.84,147.29,147.22,3.3956]
[1726845725830,3.3946,147.27,147.23,3.3953]
[1726845726831,20.84,147.29,147.22,3.41938762]
[1726845727125,20.84,147.29,147.17,2.7116]
[1726845727330,3.32360265,147.32,147.17,2.7116]
[1726845727331,3.3945,147.28,147.24,3.3951]
[1726845727533,20.84,147.29,147.17,2.7116]
[1726845728029,3.395,147.26,147.22,3.3955]
[1726845728229,20.84,147.29,147.22,3.43770808]
[1726845728434,20.84,147.29,147.17,2.7116]
[1726845729533,3.3949,147.26,147.22,3.3956]
[1726845730236,3.3949,147.26,147.23,3.3954]
[1726845730822,3.3949,147.26,147.22,3.3956]
[1726845731637,3.3947,147.27,147.23,3.3955]
[1726845731826,13.04,147.3,147.2,3.39491927]
[1726845732026,13.04,147.3,147.19,13.04]
[1726845732423,13.04,147.3,147.19,16.37401885]
[1726845732844,13.04,147.26,147.19,3.33401885]
[1726845733036,13.04,147.26,147.17,2.7116]
[1726845733429,3.3954,147.24,147.2,3.396]
[1726845733729,13.04,147.26,147.2,6.86925399]
[1726845733936,3.3954,147.24,147.2,3.396]
[1726845734530,3.3954,147.24,147.2,6.80201657]
[1726845735026,3.3954,147.24,147.21,3.3959]
[1726845735537,3.3951,147.25,147.21,3.3958]
[1726845736039,13.04,147.26,147.17,2.7116]
[1726845736239,13.04,147.24,147.17,2.7116]
[1726845736636,3.3958,147.22,147.19,3.3963]
[1726845736830,13.04,147.26,147.19,3.45016235]
[1726845737030,13.04,147.26,147.17,2.7116]
[1726845737230,13.04,147.28,147.17,2.7116]
[1726845737738,13.04,147.28,147.18,13.04]
[1726845737934,13.04,147.28,147.23,3.3954]
[1726845738137,3.39447065,147.36,147.18,16.42326452]
[1726845738138,13.04,147.25,147.18,3.38326452]
[1726845738335,13.04,147.25,147.17,2.7116]
[1726845738644,13.04,147.22,147.18,3.44608735]
[1726845739138,3.3963,147.2,147.18,6.84268735]
[1726845739735,3.396,147.21,147.18,6.84268735]
[1726845739938,3.396,147.21,147.19,3.3963]
[1726845742142,3.3966,147.18,147.17,1.3088]
[1726845742442,13.04,147.18,147.12,135.82]
[1726845742640,3.3973,147.16,147.12,135.82]
[1726845742850,13.04,147.19,147.12,135.82]
[1726845743237,3.3969,147.18,147.14,3.3975]
[1726845743433,13.04,147.19,147.12,135.82]
[1726845744038,13.04,147.21,147.12,135.82]
[1726845744343,3.3966,147.19,147.15,3.3972]
[1726845744547,13.04,147.19,147.12,135.82]
[1726845744843,3.3969,147.17,147.14,3.3974]
[1726845745142,13.04,147.19,147.14,3.3974]
[1726845745731,3.3967,147.18,147.15,3.3973]
[1726845746243,13.04,147.19,147.11,4.133]
[1726845746435,3.397,147.17,147.13,3.3976]
[1726845746836,13.04,147.17,147.11,4.133]
[1726845747144,13.04,147.17,147.11,6.1642]
[1726845747340,13.04,147.17,147.11,2.766]
[1726845747543,13.04,147.2,147.11,2.766]
[1726845748630,3.3969,147.18,147.11,2.766]
[1726845749042,13.04,147.2,147.11,2.766]
[1726845749346,13.04,147.22,147.11,15.806]
[1726845749843,20.36,147.28,147.13,13.04]
[1726845749844,13.04,147.24,147.13,13.04]
[1726845750046,13.04,147.24,147.14,1.2939]
[1726845750550,13.04,147.24,147.18,3.3964]
[1726845750551,3.396,147.21,147.18,3.3964]
[1726845750847,3.396,147.21,147.18,3.46764722]
[1726845751047,13.04,147.24,147.14,1.2939]
[1726845751946,13.04,147.22,147.14,1.2939]
[1726845752642,13.04,147.24,147.14,14.3339]
[1726845753147,3.3964,147.2,147.16,3.3969]
[1726845753352,13.04,147.22,147.14,1.2939]
[1726845753553,13.04,147.2,147.11,2.766]
[1726845753749,3.397,147.17,147.14,3.3974]
[1726845753944,3.397,147.17,147.11,4.1406]
[1726845754251,3.397,147.17,147.14,3.3974]
[1726845754451,3.3967,147.18,147.11,4.1406]
[1726845754951,3.3969,147.17,147.15,3.3972]
[1726845755146,13.04,147.2,147.11,4.1406]
[1726845755349,13.04,147.2,147.13,3.3976]
[1726845755551,13.04,147.18,147.11,4.1406]
[1726845755945,13.04,147.16,147.11,6.1641]
[1726845756250,3.3977,147.14,147.11,6.1641]
[1726845756851,3.3974,147.15,147.12,3.3979]
[1726845757649,3.3976,147.14,147.12,3.3979]
[1726845759348,3.3974,147.15,147.12,3.398]
[1726845760756,13.04,147.17,147.11,2.766]
[1726845761257,16.437,147.17,147.15,3.3973]
[1726845761458,16.437,147.17,147.11,2.766]
[1726845761659,13.04,147.17,147.11,2.766]
[1726845762158,13.04,147.15,147.11,1.3773]
[1726845762348,13.04,147.13,147.09,3.34705015]
[1726845762547,13.04,147.13,147.08,3.3987]
[1726845762950,3.3983,147.11,147.08,3.3987]
[1726845764446,20.36,147.25,147.08,13.04]
[1726845764663,13.04,147.19,147.08,13.04]
[1726845765655,13.04,147.19,147.13,3.3976]
[1726845766258,3.397,147.17,147.13,3.3976]
[1726845766562,13.04,147.19,147.08,13.04]
[1726845766755,13.04,147.19,147.07,5.94688527]
[1726845766756,13.04,147.21,147.1,13.04]
[1726845766957,13.04,147.23,147.19,3.3963]
[1726845767257,3.3959,147.22,147.17,3.42145925]
[1726845767456,3.3959,147.22,147.14,4.1086]
[1726845767457,13.04,147.23,147.18,3.3966]
[1726845767661,13.04,147.19,147.14,4.1086]
[1726845767855,3.3968,147.18,147.14,2.7868]
[1726845768060,3.43504995,147.25,147.15,3.4680074]
[1726845768262,3.3965,147.19,147.15,3.4680074]
[1726845768651,3.3965,147.19,147.15,6.8652074]
[1726845769162,13.04,147.21,147.14,6.1842]
[1726845769358,13.04,147.21,147.14,2.7868]
[1726845769560,13.04,147.16,147.14,1.3943]
[1726845769861,13.04,147.16,147.09,1.3402]
[1726845770057,16.4373,147.16,147.09,2.6963]
[1726845770258,13.04,147.19,147.09,2.6963]
[1726845770458,13.04,147.21,147.09,15.7363]
[1726845770656,13.04,147.21,147.16,3.397]
[1726845771464,3.3963,147.2,147.16,3.397]
[1726845771761,13.04,147.21,147.16,3.397]
[1726845771961,3.3966,147.19,147.15,6.81921338]
[1726845772155,3.3966,147.19,147.15,3.3972]
[1726845772764,3.3966,147.19,147.15,6.84764474]
[1726845773066,3.3967,147.18,147.15,6.84764474]
[1726845773461,3.3969,147.17,147.14,3.3975]
[1726845773659,3.3969,147.17,147.09,2.6963]
[1726845773858,13.04,147.29,147.09,2.6963]
[1726845773859,20.36,147.42,147.16,13.04]
[1726845774059,13.04,147.3,147.17,1.3589]
[1726845774259,16.434,147.3,147.24,3.3952]
[1726845775065,13.04,147.28,147.23,3.3955]
[1726845775259,89.20692295,147.42,147.23,3.3955]
[1726845775455,13.04,147.28,147.23,3.3955]
[1726845775967,13.04,147.25,147.21,3.3958]
[1726845781465,13.04,147.23,147.18,1.2849]
[1726845781870,20.36,147.34,147.18,1.2849]
[1726845782067,13.04,147.26,147.18,1.2849]
[1726845782270,13.04,147.24,147.18,1.2849]
[1726845783374,3.33922715,147.34,147.18,1.2849]
[1726845783375,13.04,147.27,147.18,1.2849]
[1726845783562,13.04,147.29,147.18,14.3249]
[1726845783762,13.04,147.29,147.25,3.3948]
[1726845784170,16.4347,147.27,147.22,3.3955]
[1726845784365,16.4347,147.27,147.18,1.2849]
[1726845784770,13.04,147.27,147.18,1.2849]
[1726845785475,13.04,147.29,147.18,14.3249]
[1726845786873,3.3945,147.28,147.24,3.3951]
[1726845787075,13.04,147.27,147.18,1.2849]
[1726845787271,13.04,147.27,147.24,3.3951]
[1726845787471,13.04,147.33,147.23,13.04]
[1726845787670,13.04,147.33,147.24,1.3755]
[1726845787870,16.4338,147.31,147.27,3.3944]
[1726845788277,13.04,147.33,147.25,3.3765812]
[1726845788477,13.04,147.33,147.26,1.2946]
[1726845788665,13.04,147.33,147.26,4.70183767]
[1726845788865,3.393,147.34,147.3,3.3937]
[1726845791280,3.3932,147.33,147.29,3.394]
[1726845791574,13.04,147.34,147.26,4.68418359]
[1726845791969,3.3936,147.32,147.28,3.3943]
[1726845792171,13.04,147.34,147.26,4.68418359]
[1726845792367,3.3938,147.31,147.27,3.3944]
[1726845792676,13.04,147.34,147.26,1.2946]
[1726845792873,13.04,147.34,147.27,3.39308769]
[1726845793178,13.04,147.34,147.26,1.2946]
[1726845793479,3.3932,147.33,147.26,4.68700873]
[1726845793680,13.04,147.36,147.26,1.2946]
[1726845793979,16.4327,147.36,147.26,4.69447726]
[1726845794182,13.04,147.36,147.26,1.2946]
[1726845794491,20.36,147.42,147.26,1.2946]
[1726845794492,13.04,147.38,147.27,13.04]
[1726845794675,13.04,147.39,147.27,13.04]
[1726845794873,20.36,147.46,147.27,16.35942085]
[1726845795092,13.04,147.41,147.29,13.04]
[1726845795279,3.3916,147.4,147.3,2.6755]
[1726845795480,3.3916,147.4,147.3,6.08168934]
[1726845795785,13.04,147.41,147.3,2.6755]
[1726845795985,3.3918,147.39,147.3,2.6755]
[1726845796187,3.3918,147.39,147.3,6.08101062]
[1726845796387,13.04,147.41,147.3,6.08101062]
[1726845796692,13.04,147.41,147.35,3.3926]
[1726845796986,13.04,147.41,147.3,6.08101062]
[1726845797187,3.3918,147.4,147.35,3.3927]
[1726845797579,13.04,147.41,147.3,6.08101062]
[1726845797776,16.4314,147.41,147.3,6.08101062]
[1726845798290,16.4314,147.41,147.36,3.3924]
[1726845798786,16.4314,147.41,147.32,13.04]
[1726845798994,3.3914,147.41,147.36,3.3923]
[1726845799492,3.3914,147.41,147.37,3.3923]
[1726845799987,3.3914,147.41,147.36,3.3924]
[1726845800195,3.3916,147.4,147.36,3.3924]
[1726845800491,13.04,147.43,147.33,1.2874]
[1726845800685,3.3917,147.4,147.33,1.2874]
[1726845801484,3.3914,147.41,147.33,1.2874]
[1726845801891,13.04,147.43,147.36,3.3923]
[1726845802094,3.3917,147.4,147.36,3.3923]
[1726845805697,13.04,147.41,147.33,1.2874]
[1726845806294,3.3919,147.39,147.35,3.3926]
[1726845806497,13.04,147.41,147.35,3.3926]
[1726845806891,3.3919,147.39,147.35,3.3926]
[1726845807199,13.04,147.41,147.34,3.3929]
[1726845807390,3.392,147.39,147.33,1.2874]
[1726845807795,3.392,147.39,147.35,3.3927]
[1726845807994,13.04,147.41,147.35,3.3927]
[1726845808393,3.392,147.39,147.35,3.3927]
[1726845809590,3.392,147.38,147.35,3.3927]
[1726845809788,13.04,147.39,147.33,1.2874]
[1726845809990,13.04,147.41,147.33,1.2874]
[1726845810401,3.3918,147.39,147.33,1.2874]
[1726845810792,13.04,147.43,147.33,1.2874]
[1726845810993,3.3916,147.4,147.36,3.3924]
[1726845811294,3.3916,147.4,147.33,1.2874]
[1726845811295,13.04,147.43,147.33,1.2874]
[1726845811808,3.3921,147.38,147.33,1.2874]
[1726845812099,3.3921,147.38,147.35,3.3927]
[1726845812599,13.04,147.43,147.33,1.2874]
[1726845812901,13.04,147.43,147.34,3.3928]
[1726845813593,3.3916,147.4,147.33,1.2874]
[1726845814297,3.3916,147.4,147.36,3.3923]
[1726845814501,3.3914,147.41,147.33,1.2874]
[1726845814701,3.3914,147.41,147.34,13.04]
[1726845814893,13.04,147.45,147.38,3.3919]
[1726845815094,3.3912,147.42,147.38,3.3919]
[1726845815405,30.53228818,147.48,147.4,3.3915]
[1726845815406,13.04,147.47,147.4,3.3915]
[1726845815604,3.3908,147.44,147.4,6.75888414]
[1726845816007,13.04,147.47,147.4,3.36738414]
[1726845816306,13.04,147.47,147.39,3.3917]
[1726845816307,3.391,147.43,147.39,1.4226]
[1726845816799,3.391,147.43,147.4,3.41963899]
[1726845817000,3.3907,147.44,147.39,1.4226]
[1726845817309,3.3907,147.44,147.39,4.8143]
[1726845817501,3.3907,147.44,147.39,8.1748978]
[1726845817801,3.3909,147.43,147.39,8.1748978]
[1726845818803,3.3909,147.43,147.39,4.7831978]
[1726845819311,13.04,147.47,147.4,3.3916]
[1726845819508,13.04,147.47,147.39,4.7831978]
[1726845819710,3.3908,147.44,147.39,4.7831978]
[1726845819910,3.3908,147.44,147.39,8.1747978]
[1726845820606,3.3908,147.44,147.4,3.3916]
[1726845822912,3.3909,147.43,147.39,8.1747978]
[1726845823307,3.3907,147.44,147.39,4.7831978]
[1726845823616,13.04,147.47,147.39,4.7831978]
[1726845824022,8.33,147.43,147.39,4.7831978]
[1726845825113,11.721,147.43,147.39,8.1747978]
[1726845825417,8.33,147.43,147.39,4.7831978]
[1726845825618,3.3913,147.42,147.39,4.7831978]
[1726845826018,8.33,147.43,147.39,4.7831978]
[1726845826218,3.3913,147.42,147.39,4.7831978]
[1726845826607,8.33,147.43,147.39,4.7831978]
[1726845826818,8.33,147.42,147.39,1.4226]
[1726845827221,8.33,147.43,147.39,4.86335559]
[1726845827832,8.33,147.43,147.39,1.4226]
[1726845828827,3.3913,147.42,147.39,1.4226]
[1726845829028,8.33,147.43,147.39,1.4226]
[1726845829328,3.42142169,147.47,147.39,1.4226]
[1726845829522,8.33,147.44,147.39,1.4226]
[1726845829929,3.391,147.43,147.39,4.8144]
[1726845830123,8.33,147.44,147.39,9.7526]
[1726845831428,3.391,147.43,147.39,13.1443]
[1726845831928,8.33,147.44,147.39,1.4226]
[1726845832126,8.33,147.42,147.39,1.4226]
[1726845832327,8.33,147.41,147.39,1.4226]
[1726845832530,8.33,147.4,147.32,1.4055]
[1726845832724,8.33,147.39,147.33,9.7089]
[1726845833123,3.392,147.38,147.34,3.3928]
[1726845833322,8.33,147.39,147.33,9.7089]
[1726845833523,3.3925,147.37,147.33,13.102]
[1726845833820,8.33,147.39,147.33,9.7089]
[1726845834022,3.3926,147.36,147.33,9.7089]
[1726845834841,3.3926,147.36,147.33,13.1021]
[1726845835930,8.33,147.39,147.34,3.3929]
[1726845835931,3.3923,147.37,147.34,3.3929]
[1726845836432,3.3919,147.39,147.36,11.7224]
[1726845837026,6.78,147.47,147.37,3.3923]
[1726845837336,8.33,147.42,147.36,8.33]
[1726845837632,3.3917,147.4,147.36,11.7224]
[1726845838831,3.3914,147.41,147.37,3.3922]
[1726845839432,3.3914,147.41,147.38,3.46225529]
[1726845839632,3.3912,147.42,147.38,15.18415529]
[1726845839833,20.36,147.5,147.4,8.33]
[1726845840021,8.33,147.46,147.4,8.33]
[1726845840221,3.3907,147.44,147.39,10.9617]
[1726845840824,11.721,147.43,147.39,6.0234]
[1726845841228,8.33,147.43,147.39,2.6317]
[1726845841431,8.33,147.42,147.39,2.6317]
[1726845842132,13.02,147.45,147.39,2.6317]
[1726845843029,3.3911,147.43,147.39,2.6317]
[1726845843225,13.02,147.43,147.33,13.02]
[1726845843431,13.02,147.45,147.36,1.3389]
[1726845843632,3.391,147.43,147.36,1.3389]
[1726845843938,13.02,147.45,147.36,1.3389]
[1726845844140,3.3912,147.42,147.36,1.3389]
[1726845844531,3.3912,147.42,147.38,3.392]
[1726845844729,3.3912,147.42,147.39,3.39112458]
[1726845845938,3.3914,147.41,147.37,3.3922]
[1726845846139,3.3914,147.41,147.38,3.37891287]
[1726845846330,13.02,147.45,147.38,3.37891287]
[1726845846531,13.02,147.45,147.36,1.3389]
[1726845847132,13.02,147.45,147.37,3.3922]
[1726845847332,13.02,147.45,147.38,3.30936571]
[1726845847536,3.3914,147.41,147.38,3.30936571]
[1726845848242,3.3914,147.41,147.38,6.70136571]
[1726845849032,3.3914,147.41,147.38,3.30936571]
[1726845849234,3.3914,147.41,147.37,3.3922]
[1726845849839,3.3914,147.41,147.38,3.37212662]
[1726845850547,13.02,147.43,147.36,1.3389]
[1726845851340,13.02,147.41,147.36,1.3389]
[1726845852145,13.02,147.39,147.33,1.2871]
[1726845852333,3.3923,147.37,147.32,4.7988]
[1726845852532,13.02,147.39,147.32,1.4055]
[1726845853031,3.3922,147.38,147.33,3.393]
[1726845853437,13.02,147.43,147.33,13.02]
[1726845853839,13.02,147.43,147.37,3.3921]
[1726845854040,13.02,147.43,147.33,13.02]
[1726845854428,3.3916,147.4,147.33,13.02]
[1726845854629,13.02,147.43,147.33,13.02]
[1726845855034,13.02,147.43,147.35,3.3927]
[1726845856544,13.02,147.43,147.36,3.3924]
[1726845856739,13.02,147.43,147.33,13.02]
[1726845856939,3.3917,147.4,147.33,13.02]
[1726845857131,13.02,147.43,147.33,13.02]
[1726845857540,3.392,147.39,147.34,3.3928]
[1726845858251,3.3916,147.4,147.35,3.3927]
[1726845858749,13.02,147.43,147.35,3.3927]
[1726845859049,3.3918,147.39,147.35,3.3927]
[1726845860539,3.3921,147.38,147.34,3.3929]
[1726845862055,3.3921,147.38,147.35,3.3927]
[1726845864351,3.3923,147.37,147.34,3.3928]
[1726845864551,13.02,147.43,147.32,1.4055]
[1726845864959,3.3923,147.37,147.34,3.3928]
[1726845865552,3.3921,147.38,147.35,3.3927]
[1726845865942,3.3921,147.38,147.35,11.7327]
[1726845866854,3.3921,147.38,147.36,3.3925]
[1726845867151,3.3921,147.38,147.35,8.34]
[1726845867152,8.34,147.4,147.35,8.34]
[1726845867545,3.3919,147.39,147.36,3.3924]
[1726845867853,8.34,147.4,147.36,3.3924]
[1726845868153,3.3919,147.39,147.36,3.3924]
[1726845868546,8.34,147.4,147.32,1.4055]
[1726845868744,8.34,147.39,147.34,8.34]
[1726845869847,3.3921,147.38,147.35,3.3927]
[1726845871452,8.34,147.36,147.31,2.686]
[1726845871745,3.3931,147.34,147.31,2.686]
[1726845873254,3.3933,147.33,147.31,2.686]
[1726845873741,8.34,147.35,147.31,2.686]
[1726845874657,3.3931,147.34,147.31,2.686]
[1726845877346,11.7328,147.35,147.31,6.0796]
[1726845878154,3.393,147.34,147.31,6.0796]
[1726845878855,11.7328,147.35,147.31,6.0796]
[1726845879044,8.34,147.37,147.32,11.7333]
[1726845879241,3.3926,147.36,147.32,11.7333]
[1726845879950,20.36,147.45,147.31,2.686]
[1726845880155,135.74,147.49,147.37,8.34]
[1726845880343,135.74,147.49,147.38,3.3112778]
[1726845880344,8.34,147.43,147.38,3.3112778]
[1726845880550,8.34,147.43,147.38,6.7031778]
[1726845880849,8.34,147.43,147.38,3.3112778]
[1726845881053,3.3915,147.41,147.38,3.3112778]
[1726845883162,3.3918,147.4,147.36,3.3924]
[1726845883858,13.02,147.43,147.35,3.3926]
[1726845884454,3.3919,147.39,147.35,3.3926]
[1726845884857,3.3922,147.38,147.34,3.3929]
[1726845885062,13.02,147.43,147.33,1.3367]
[1726845885567,3.3919,147.39,147.35,3.3927]
[1726845886763,13.02,147.43,147.36,3.3923]
[1726845887067,13.02,147.43,147.33,1.3367]
[1726845887363,3.3919,147.39,147.35,3.3926]
[1726845889451,3.3916,147.41,147.33,1.3367]
[1726845890261,3.3916,147.41,147.37,3.3921]
[1726845890459,3.3916,147.4,147.37,3.3921]
[1726845892373,3.3918,147.4,147.33,1.3367]
[1726845892870,3.3914,147.41,147.37,3.3921]
[1726845894570,3.3914,147.41,147.38,1.3991]
[1726845895370,13.02,147.43,147.38,1.3991]
[1726845896258,20.36,147.46,147.38,1.3991]
[1726845896476,3.3915,147.41,147.38,1.3991]
[1726845897168,13.02,147.44,147.38,1.3991]
[1726845897169,3.3916,147.4,147.38,1.3991]
[1726845902272,20.36,147.48,147.38,4.76014832]
[1726845902479,8.34,147.44,147.39,8.34]
[1726845902980,3.391,147.43,147.39,15.08993213]
[1726845904171,3.3911,147.42,147.39,15.08993213]
[1726845904366,3.3911,147.42,147.39,3.35833213]
[1726845904771,3.3911,147.42,147.38,4.791]
[1726845904772,11.7315,147.41,147.38,1.3991]
[1726845905583,11.7315,147.41,147.38,4.7911]
[1726845906080,11.7315,147.41,147.38,1.3991]
[1726845906471,3.3916,147.4,147.38,1.3991]
[1726845909581,8.34,147.41,147.38,1.3991]
[1726845909983,3.3918,147.39,147.38,1.3991]
[1726845910384,3.3922,147.38,147.34,8.34]
[1726845910588,3.3922,147.38,147.35,3.3925]
[1726845910786,8.34,147.4,147.34,1.2946]
[1726845910983,8.34,147.4,147.34,9.6346]
[1726845911184,3.3921,147.38,147.35,3.3927]
[1726845912589,8.34,147.4,147.35,3.3927]
[1726845913391,3.3922,147.38,147.35,3.3927]
[1726845915389,8.34,147.41,147.37,3.3921]
[1726845915591,8.34,147.41,147.38,3.40153182]
[1726845915978,3.3916,147.4,147.38,3.40153182]
[1726845916687,11.7315,147.41,147.38,3.40153182]
[1726845916884,3.3915,147.41,147.38,3.40153182]
[1726845917089,3.3915,147.41,147.38,6.79353182]
[1726845920805,3.3915,147.41,147.38,3.40153182]
[1726845921185,11.7315,147.41,147.38,3.40153182]
[1726845921386,11.7315,147.41,147.38,6.79353182]
[1726845921798,3.3916,147.4,147.37,1.3585]
[1726845922193,20.36,147.5,147.39,8.34]
[1726845922394,8.34,147.48,147.43,8.34]
[1726845922588,8.34,147.48,147.43,11.7307]
[1726845922782,3.42606707,147.54,147.45,8.34]
[1726845923084,8.34,147.51,147.47,3.3899]
[1726845923290,3.3885,147.54,147.48,8.34]
[1726845923491,8.34,147.54,147.48,11.72026857]
[1726845923896,20.36,147.61,147.48,3.38026857]
[1726845923897,8.34,147.51,147.48,3.38026857]
[1726845924092,20.36,147.61,147.47,9.7532]
[1726845924287,8.34,147.52,147.47,13.0907233]
[1726845924892,11.7289,147.52,147.47,16.4806233]
[1726845925097,8.34,147.52,147.47,16.4806233]
[1726845925797,3.3891,147.51,147.47,16.4806233]
[1726845925998,8.34,147.52,147.47,16.4806233]
[1726845926893,11.7289,147.52,147.48,3.3897]
[1726845927089,11.7289,147.52,147.48,4.799]
[1726845927292,8.34,147.52,147.48,4.799]
[1726845927502,23.73189978,147.62,147.49,3.3895]
[1726845927698,8.34,147.54,147.49,8.34]
[1726845927999,3.3882,147.55,147.5,8.34]
[1726845928195,3.3882,147.55,147.51,3.389]
[1726845928403,8.34,147.56,147.51,3.389]
[1726845928598,135.72,147.65,147.52,11.7287]
[1726845928897,8.34,147.58,147.52,8.34]
[1726845929099,8.34,147.57,147.52,8.34]
[1726845930099,3.3883,147.55,147.52,8.34]
[1726845930797,8.34,147.55,147.5,3.3892]
[1726845930997,8.34,147.55,147.5,11.7292]
[1726845931307,8.34,147.52,147.48,2.7438]
[1726845931493,8.34,147.49,147.48,1.4093]
[1726845931694,3.3895,147.49,147.48,1.4093]
[1726845931998,3.39751769,147.55,147.48,4.76049397]
[1726845932202,6.7745,147.59,147.48,4.76049397]
[1726845932498,8.34,147.52,147.48,4.76049397]
[1726845932802,3.3891,147.51,147.48,4.76049397]
[1726845933096,6.7745,147.59,147.48,4.76049397]
[1726845933304,8.34,147.53,147.48,4.76049397]
[1726845933890,27.1345,147.59,147.48,13.10049397]
[1726845934097,8.34,147.54,147.48,16.48999397]
[1726845934298,8.34,147.54,147.48,13.10049397]
[1726845934505,8.34,147.52,147.48,4.76049397]
[1726845935300,11.7289,147.52,147.48,8.15019397]
[1726845935499,3.3889,147.52,147.48,16.49019397]
[1726845935907,3.3886,147.53,147.49,3.3895]
[1726845936407,11.7284,147.54,147.5,3.3893]
[1726845936601,8.34,147.55,147.5,8.34]
[1726845936801,27.1325,147.64,147.51,8.34]
[1726845936802,8.34,147.56,147.51,8.34]
[1726845937300,8.34,147.55,147.51,8.34]
[1726845937895,3.3884,147.54,147.5,11.7291]
[1726845938101,8.34,147.55,147.5,8.34]
[1726845938608,144.68766087,147.68,147.48,6.08209397]
[1726845938609,8.34,147.52,147.48,6.08209397]
[1726845939003,3.389,147.52,147.49,8.34]
[1726845939206,8.34,147.54,147.49,8.34]
[1726845939405,8.34,147.55,147.5,8.34]
[1726845939807,3.3885,147.54,147.5,11.7292]